[Event "Titled Tuesday Blitz April 25 Late 2023"]
[White "O`Gorman, Tom"]
[Black "Jovic, Stanoje"]
[WhiteFideId "2508249"]
[BlackFideId "905020"]
[WhiteElo "2271"]
[BlackElo "2236"]
[Result "1/2-1/2"]
[Round "07"]
[TimeControl "180+2"]
[Date "2023.04.25"]
[WhiteClock "0:00:20"]
[BlackClock "0:00:38"]

1. e4 {[%clk 0:03:00]}  c6 {[%clk 0:02:59]} 2. Nf3 {[%clk 0:03:00]}  d5 {[%clk 0:02:59]} 3. d3 {[%clk 0:03:00]}  dxe4 {[%clk 0:02:59]} 4. dxe4 {[%clk 0:03:01]}  Qxd1+ {[%clk 0:02:59]} 5. Kxd1 {[%clk 0:03:02]}  Bg4 {[%clk 0:02:59]} 6. Be2 {[%clk 0:03:02]}  Bxf3 {[%clk 0:02:59]} 7. Bxf3 {[%clk 0:03:02]}  h5 {[%clk 0:02:59]} 8. Be2 {[%clk 0:02:58]}  g6 {[%clk 0:02:59]} 9. c3 {[%clk 0:02:58]}  Bh6 {[%clk 0:02:57]} 10. Nd2 {[%clk 0:02:58]}  Nd7 {[%clk 0:02:56]} 11. Kc2 {[%clk 0:02:56]}  O-O-O {[%clk 0:02:54]} 12. a4 {[%clk 0:02:52]}  Ngf6 {[%clk 0:02:52]} 13. f3 {[%clk 0:02:51]}  Nc5 {[%clk 0:02:49]} 14. b4 {[%clk 0:02:49]}  Ne6 {[%clk 0:02:48]} 15. a5 {[%clk 0:02:41]}  h4 {[%clk 0:02:47]} 16. Bc4 {[%clk 0:02:30]}  Bf4 {[%clk 0:02:35]} 17. Nb3 {[%clk 0:02:17]}  Bxc1 {[%clk 0:02:34]} 18. Bxe6+ {[%clk 0:02:17]}  fxe6 {[%clk 0:02:31]} 19. Raxc1 {[%clk 0:02:17]}  Nh5 {[%clk 0:02:24]} 20. Nd4 {[%clk 0:01:48]}  e5 {[%clk 0:02:18]} 21. Ne2 {[%clk 0:01:47]}  Nf4 {[%clk 0:02:14]} 22. Nxf4 {[%clk 0:01:46]}  exf4 {[%clk 0:02:15]} 23. Rcd1 {[%clk 0:01:44]}  h3 {[%clk 0:02:11]} 24. Rxd8+ {[%clk 0:01:42]}  Kxd8 {[%clk 0:02:11]} 25. g3 {[%clk 0:01:39]}  fxg3 {[%clk 0:02:04]} 26. hxg3 {[%clk 0:01:40]}  g5 {[%clk 0:02:03]} 27. Kd3 {[%clk 0:01:39]}  e5 {[%clk 0:02:00]} 28. Ke3 {[%clk 0:01:37]}  Ke7 {[%clk 0:01:59]} 29. Kf2 {[%clk 0:01:30]}  Kf6 {[%clk 0:01:57]} 30. g4 {[%clk 0:01:27]}  Kg6 {[%clk 0:01:49]} 31. Kg3 {[%clk 0:01:12]}  Rd8 {[%clk 0:01:48]} 32. Rxh3 {[%clk 0:01:13]}  Rd3 {[%clk 0:01:48]} 33. Rh8 {[%clk 0:01:13]}  Rxc3 {[%clk 0:01:48]} 34. Rg8+ {[%clk 0:01:14]}  Kf6 {[%clk 0:01:46]} 35. Rf8+ {[%clk 0:01:14]}  Ke6 {[%clk 0:01:45]} 36. Rf5 {[%clk 0:01:13]}  Rb3 {[%clk 0:01:42]} 37. Rxg5 {[%clk 0:01:07]}  Rxb4 {[%clk 0:01:42]} 38. Rg6+ {[%clk 0:01:08]}  Kf7 {[%clk 0:01:39]} 39. Rh6 {[%clk 0:01:03]}  c5 {[%clk 0:01:36]} 40. a6 {[%clk 0:00:59]}  bxa6 {[%clk 0:01:21]} 41. Rxa6 {[%clk 0:01:00]}  Rb7 {[%clk 0:01:20]} 42. Rc6 {[%clk 0:00:59]}  a5 {[%clk 0:01:19]} 43. Rxc5 {[%clk 0:00:59]}  Ra7 {[%clk 0:01:19]} 44. Rxe5 {[%clk 0:00:49]}  a4 {[%clk 0:01:19]} 45. Rc5 {[%clk 0:00:49]}  a3 {[%clk 0:01:19]} 46. Rc1 {[%clk 0:00:50]}  a2 {[%clk 0:01:20]} 47. Ra1 {[%clk 0:00:51]}  Ke6 {[%clk 0:01:19]} 48. Kf4 {[%clk 0:00:50]}  Ra8 {[%clk 0:01:12]} 49. g5 {[%clk 0:00:50]}  Rf8+ {[%clk 0:01:11]} 50. Kg4 {[%clk 0:00:50]}  Ra8 {[%clk 0:01:10]} 51. f4 {[%clk 0:00:50]}  Ra4 {[%clk 0:01:10]} 52. e5 {[%clk 0:00:38]}  Ra8 {[%clk 0:01:03]} 53. g6 {[%clk 0:00:38]}  Ra3 {[%clk 0:01:00]} 54. g7 {[%clk 0:00:33]}  Kf7 {[%clk 0:00:59]} 55. Kf5 {[%clk 0:00:28]}  Kxg7 {[%clk 0:00:56]} 56. Ke6 {[%clk 0:00:26]}  Ra6+ {[%clk 0:00:55]} 57. Kd5 {[%clk 0:00:27]}  Kg6 {[%clk 0:00:53]} 58. e6 {[%clk 0:00:20]}  Kf6 {[%clk 0:00:50]} 59. f5 {[%clk 0:00:20]}  Ra5+ {[%clk 0:00:49]} 60. Kd6 {[%clk 0:00:20]}  Ra6+ {[%clk 0:00:49]} 61. Kd7 {[%clk 0:00:21]}  Ra7+ {[%clk 0:00:49]} 62. Kd8 {[%clk 0:00:20]}  Ra8+ {[%clk 0:00:46]} 63. Kc7 {[%clk 0:00:20]}  Kxf5 {[%clk 0:00:42]} 64. e7 {[%clk 0:00:20]}  Ra7+ {[%clk 0:00:39]} 65. Kd8 {[%clk 0:00:19]}  Ra8+ {[%clk 0:00:39]} 66. Kd7 {[%clk 0:00:20]}  Ra7+ {[%clk 0:00:39]} 67. Kd6 {[%clk 0:00:19]}  Ra6+ {[%clk 0:00:37]} 68. Kd7 {[%clk 0:00:19]}  Ra7+ {[%clk 0:00:37]} 69. Kd6 {[%clk 0:00:20]}  Ra6+ {[%clk 0:00:38]} 70. Kd7 {[%clk 0:00:20]}  Ra7+ {[%clk 0:00:38]} 1/2-1/2


[Site "https://www.chess.com"]

[Event "Titled Tuesday Blitz April 25 Late 2023"]
[White "Chernobay, Artem"]
[Black "ArtemDyachuk"]
[WhiteFideId "4167406"]
[WhiteElo "2474"]
[BlackElo "2440"]
[Result "1-0"]
[Round "07"]
[TimeControl "180+2"]
[Date "2023.04.25"]
[WhiteClock "0:00:21"]
[BlackClock "0:00:02"]

1. e4 {[%clk 0:02:59]}  c6 {[%clk 0:02:49]} 2. d4 {[%clk 0:02:58]}  d5 {[%clk 0:02:43]} 3. e5 {[%clk 0:02:57]}  c5 {[%clk 0:02:42]} 4. dxc5 {[%clk 0:02:57]}  e6 {[%clk 0:02:42]} 5. a3 {[%clk 0:02:56]}  Bxc5 {[%clk 0:02:39]} 6. b4 {[%clk 0:02:56]}  Bb6 {[%clk 0:02:40]} 7. Nf3 {[%clk 0:02:52]}  f6 {[%clk 0:02:37]} 8. Bd3 {[%clk 0:02:50]}  Nc6 {[%clk 0:02:36]} 9. Bb2 {[%clk 0:02:49]}  fxe5 {[%clk 0:02:36]} 10. Nxe5 {[%clk 0:02:45]}  Bxf2+ {[%clk 0:02:28]} 11. Kxf2 {[%clk 0:02:43]}  Qf6+ {[%clk 0:02:26]} 12. Kg1 {[%clk 0:02:22]}  Nxe5 {[%clk 0:02:24]} 13. Qh5+ {[%clk 0:02:23]}  Qf7 {[%clk 0:01:48]} 14. Qxe5 {[%clk 0:02:22]}  Nf6 {[%clk 0:01:49]} 15. Nd2 {[%clk 0:02:20]}  O-O {[%clk 0:01:43]} 16. Rf1 {[%clk 0:02:20]}  Bd7 {[%clk 0:01:29]} 17. h3 {[%clk 0:02:13]}  Qe7 {[%clk 0:01:26]} 18. Nf3 {[%clk 0:02:06]}  a5 {[%clk 0:01:17]} 19. b5 {[%clk 0:01:44]}  Rac8 {[%clk 0:01:06]} 20. Nd4 {[%clk 0:01:41]}  Rce8 {[%clk 0:00:51]} 21. Rf3 {[%clk 0:01:32]}  a4 {[%clk 0:00:37]} 22. Kh2 {[%clk 0:01:28]}  Rf7 {[%clk 0:00:34]} 23. Re1 {[%clk 0:01:21]}  Ref8 {[%clk 0:00:29]} 24. Nxe6 {[%clk 0:01:07]}  Re8 {[%clk 0:00:19]} 25. Ng5 {[%clk 0:00:31]}  Qf8 {[%clk 0:00:18]} 26. Qg3 {[%clk 0:00:26]}  Rxe1 {[%clk 0:00:12]} 27. Qxe1 {[%clk 0:00:27]}  Re7 {[%clk 0:00:12]} 28. Qh4 {[%clk 0:00:23]}  d4 {[%clk 0:00:06]} 29. Bxh7+ {[%clk 0:00:21]}  Kh8 {[%clk 0:00:03]} 30. Bg6+ {[%clk 0:00:20]}  Kg8 {[%clk 0:00:02]} 31. Qh7+ {[%clk 0:00:21]} 1-0


[Site "https://www.chess.com"]

[Event "Titled Tuesday Blitz April 25 Late 2023"]
[White "Rangel, Daniel"]
[Black "Ibadov, Dashgyn"]
[WhiteFideId "2124475"]
[BlackFideId "24107514"]
[WhiteElo "2256"]
[BlackElo "2208"]
[Result "1-0"]
[Round "07"]
[TimeControl "180+2"]
[Date "2023.04.25"]
[WhiteClock "0:00:08"]
[BlackClock "0:00:01"]

1. c4 {[%clk 0:03:00]}  Nf6 {[%clk 0:02:58]} 2. Nc3 {[%clk 0:03:00]}  c5 {[%clk 0:02:58]} 3. g3 {[%clk 0:02:59]}  e6 {[%clk 0:02:58]} 4. d4 {[%clk 0:02:55]}  cxd4 {[%clk 0:02:54]} 5. Qxd4 {[%clk 0:02:56]}  Nc6 {[%clk 0:02:53]} 6. Qd1 {[%clk 0:02:55]}  d5 {[%clk 0:02:53]} 7. cxd5 {[%clk 0:02:55]}  exd5 {[%clk 0:02:53]} 8. Bg2 {[%clk 0:02:54]}  Bb4 {[%clk 0:02:43]} 9. Bd2 {[%clk 0:02:51]}  d4 {[%clk 0:02:39]} 10. Ne4 {[%clk 0:02:50]}  Bxd2+ {[%clk 0:02:35]} 11. Qxd2 {[%clk 0:02:48]}  O-O {[%clk 0:02:36]} 12. Nxf6+ {[%clk 0:02:40]}  Qxf6 {[%clk 0:02:37]} 13. Nf3 {[%clk 0:02:39]}  Bf5 {[%clk 0:02:26]} 14. O-O {[%clk 0:02:36]}  Rad8 {[%clk 0:02:26]} 15. Rad1 {[%clk 0:02:28]}  Rfe8 {[%clk 0:02:26]} 16. Rfe1 {[%clk 0:02:27]}  h6 {[%clk 0:02:25]} 17. a3 {[%clk 0:02:24]}  Be4 {[%clk 0:01:55]} 18. Qf4 {[%clk 0:02:10]}  Qxf4 {[%clk 0:01:53]} 19. gxf4 {[%clk 0:02:11]}  f6 {[%clk 0:01:39]} 20. Rd2 {[%clk 0:02:10]}  b6 {[%clk 0:01:07]} 21. Red1 {[%clk 0:02:04]}  d3 {[%clk 0:00:57]} 22. exd3 {[%clk 0:01:02]}  Bxf3 {[%clk 0:00:57]} 23. Bxf3 {[%clk 0:01:02]}  Nd4 {[%clk 0:00:58]} 24. Bg2 {[%clk 0:01:00]}  Ne2+ {[%clk 0:00:55]} 25. Kf1 {[%clk 0:01:00]}  Nxf4 {[%clk 0:00:55]} 26. Bc6 {[%clk 0:00:55]}  Re6 {[%clk 0:00:48]} 27. Bb5 {[%clk 0:00:53]}  Red6 {[%clk 0:00:45]} 28. d4 {[%clk 0:00:52]}  Kf8 {[%clk 0:00:32]} 29. Bc4 {[%clk 0:00:44]}  Nd5 {[%clk 0:00:22]} 30. Re1 {[%clk 0:00:37]}  Rc8 {[%clk 0:00:20]} 31. b3 {[%clk 0:00:34]}  Ne7 {[%clk 0:00:20]} 32. Rde2 {[%clk 0:00:31]}  Rc7 {[%clk 0:00:11]} 33. a4 {[%clk 0:00:28]}  g5 {[%clk 0:00:09]} 34. d5 {[%clk 0:00:23]}  h5 {[%clk 0:00:08]} 35. Re6 {[%clk 0:00:20]}  Rcd7 {[%clk 0:00:08]} 36. Kg2 {[%clk 0:00:17]}  h4 {[%clk 0:00:06]} 37. Kf3 {[%clk 0:00:15]}  Ng6 {[%clk 0:00:06]} 38. Kg4 {[%clk 0:00:14]}  Ne5+ {[%clk 0:00:05]} 39. Kf5 {[%clk 0:00:13]}  Kf7 {[%clk 0:00:05]} 40. f4 {[%clk 0:00:08]}  gxf4 {[%clk 0:00:05]} 41. Rf1 {[%clk 0:00:09]}  Ng6 {[%clk 0:00:03]} 42. Rxd6 {[%clk 0:00:08]}  Rxd6 {[%clk 0:00:03]} 43. Rg1 {[%clk 0:00:08]}  Ne7+ {[%clk 0:00:03]} 44. Kxf4 {[%clk 0:00:09]}  Nxd5+ {[%clk 0:00:03]} 45. Ke4 {[%clk 0:00:09]}  f5+ {[%clk 0:00:02]} 46. Ke5 {[%clk 0:00:09]}  Re6+ {[%clk 0:00:01]} 47. Kxd5 {[%clk 0:00:09]}  Kf6 {[%clk 0:00:01]} 48. Kd4 {[%clk 0:00:09]}  Re4+ {[%clk 0:00:01]} 49. Kc3 {[%clk 0:00:10]}  Re3+ {[%clk 0:00:01]} 50. Kb4 {[%clk 0:00:10]}  Rh3 {[%clk 0:00:01]} 51. Rg2 {[%clk 0:00:10]}  f4 {[%clk 0:00:02]} 52. Rf2 {[%clk 0:00:10]}  Ke5 {[%clk 0:00:01]} 53. Kb5 {[%clk 0:00:10]}  f3 {[%clk 0:00:02]} 54. Ka6 {[%clk 0:00:10]}  Kd4 {[%clk 0:00:02]} 55. Kxa7 {[%clk 0:00:10]}  Ke3 {[%clk 0:00:03]} 56. Rf1 {[%clk 0:00:10]}  Rxh2 {[%clk 0:00:03]} 57. Kxb6 {[%clk 0:00:11]}  f2 {[%clk 0:00:03]} 58. a5 {[%clk 0:00:10]}  Rg2 {[%clk 0:00:04]} 59. a6 {[%clk 0:00:10]}  h3 {[%clk 0:00:04]} 60. a7 {[%clk 0:00:10]}  Rg6+ {[%clk 0:00:02]} 61. Kc5 {[%clk 0:00:08]}  Rg5+ {[%clk 0:00:01]} 62. Bd5 {[%clk 0:00:09]}  h2 {[%clk 0:00:01]} 63. a8=Q {[%clk 0:00:08]} 1-0


[Site "https://www.chess.com"]

[Event "Titled Tuesday Blitz April 25 Late 2023"]
[White "Sliwicki, Damian"]
[Black "Janaszak, Dawid"]
[WhiteFideId "1127128"]
[BlackFideId "1119206"]
[WhiteElo "2030"]
[BlackElo "2220"]
[Result "0-1"]
[Round "07"]
[TimeControl "180+2"]
[Date "2023.04.25"]
[WhiteClock "0:00:31"]
[BlackClock "0:01:20"]

1. e4 {[%clk 0:02:59]}  c5 {[%clk 0:03:00]} 2. Nf3 {[%clk 0:02:56]}  Nc6 {[%clk 0:02:59]} 3. Bb5 {[%clk 0:02:55]}  e5 {[%clk 0:02:58]} 4. O-O {[%clk 0:02:49]}  Nge7 {[%clk 0:02:58]} 5. Re1 {[%clk 0:02:42]}  g6 {[%clk 0:02:58]} 6. Nc3 {[%clk 0:02:36]}  Bg7 {[%clk 0:02:57]} 7. Nd5 {[%clk 0:02:37]}  O-O {[%clk 0:02:55]} 8. Bf1 {[%clk 0:02:30]}  d6 {[%clk 0:02:54]} 9. d3 {[%clk 0:02:28]}  Nxd5 {[%clk 0:02:52]} 10. exd5 {[%clk 0:02:27]}  Ne7 {[%clk 0:02:52]} 11. c4 {[%clk 0:02:27]}  Bg4 {[%clk 0:02:49]} 12. h3 {[%clk 0:02:24]}  Bxf3 {[%clk 0:02:49]} 13. Qxf3 {[%clk 0:02:24]}  Nf5 {[%clk 0:02:50]} 14. Be3 {[%clk 0:02:23]}  Rb8 {[%clk 0:02:41]} 15. b4 {[%clk 0:02:18]}  e4 {[%clk 0:02:32]} 16. dxe4 {[%clk 0:02:16]}  Nxe3 {[%clk 0:02:32]} 17. Qxe3 {[%clk 0:02:14]}  Bxa1 {[%clk 0:02:32]} 18. Rxa1 {[%clk 0:02:15]}  Qf6 {[%clk 0:02:26]} 19. Rb1 {[%clk 0:02:13]}  b6 {[%clk 0:02:24]} 20. b5 {[%clk 0:02:11]}  Rfe8 {[%clk 0:02:20]} 21. f3 {[%clk 0:01:53]}  h5 {[%clk 0:02:19]} 22. Rb3 {[%clk 0:01:46]}  Ra8 {[%clk 0:02:13]} 23. f4 {[%clk 0:01:42]}  a6 {[%clk 0:02:10]} 24. bxa6 {[%clk 0:01:35]}  Rxa6 {[%clk 0:02:11]} 25. a3 {[%clk 0:01:36]}  Qa1 {[%clk 0:01:52]} 26. f5 {[%clk 0:01:19]}  Qf6 {[%clk 0:01:32]} 27. fxg6 {[%clk 0:01:12]}  fxg6 {[%clk 0:01:32]} 28. Qf3 {[%clk 0:01:00]}  Kg7 {[%clk 0:01:29]} 29. Qe2 {[%clk 0:00:40]}  Qd4+ {[%clk 0:01:27]} 30. Kh1 {[%clk 0:00:34]}  Rxe4 {[%clk 0:01:25]} 31. Qf3 {[%clk 0:00:31]}  Rf4 {[%clk 0:01:23]} 32. Qg3 {[%clk 0:00:31]}  Rxf1+ {[%clk 0:01:21]} 33. Kh2 {[%clk 0:00:31]}  Qg1# {[%clk 0:01:20]} 0-1


[Site "https://www.chess.com"]

[Event "Titled Tuesday Blitz April 25 Late 2023"]
[White "Bashkansky, Ethan"]
[Black "Fiorito, Francisco"]
[WhiteFideId "2071533"]
[BlackFideId "180165"]
[WhiteElo "2101"]
[BlackElo "2341"]
[Result "1-0"]
[Round "07"]
[TimeControl "180+2"]
[Date "2023.04.25"]
[WhiteClock "0:00:05"]
[BlackClock "0:00:05"]

1. d4 {[%clk 0:03:00]}  Nf6 {[%clk 0:02:59]} 2. c4 {[%clk 0:03:01]}  b6 {[%clk 0:02:57]} 3. a3 {[%clk 0:03:00]}  Bb7 {[%clk 0:02:56]} 4. d5 {[%clk 0:03:01]}  e5 {[%clk 0:02:54]} 5. Nc3 {[%clk 0:03:01]}  a5 {[%clk 0:02:54]} 6. g3 {[%clk 0:03:00]}  Bc5 {[%clk 0:02:50]} 7. Bg2 {[%clk 0:02:58]}  O-O {[%clk 0:02:45]} 8. Nh3 {[%clk 0:02:58]}  Na6 {[%clk 0:02:31]} 9. O-O {[%clk 0:02:57]}  h6 {[%clk 0:02:28]} 10. Bd2 {[%clk 0:02:51]}  Re8 {[%clk 0:02:25]} 11. Na4 {[%clk 0:02:41]}  Bf8 {[%clk 0:02:23]} 12. Bc3 {[%clk 0:02:36]}  Nc5 {[%clk 0:02:20]} 13. Nxc5 {[%clk 0:02:23]}  bxc5 {[%clk 0:02:20]} 14. Kh1 {[%clk 0:02:21]}  d6 {[%clk 0:02:16]} 15. e4 {[%clk 0:02:15]}  Qd7 {[%clk 0:02:14]} 16. Qd2 {[%clk 0:02:08]}  a4 {[%clk 0:02:10]} 17. Rae1 {[%clk 0:02:08]}  Ba6 {[%clk 0:02:10]} 18. Qd3 {[%clk 0:02:05]}  g6 {[%clk 0:01:54]} 19. f4 {[%clk 0:02:05]}  Bg7 {[%clk 0:01:46]} 20. fxe5 {[%clk 0:02:03]}  Ng4 {[%clk 0:01:22]} 21. e6 {[%clk 0:01:31]}  fxe6 {[%clk 0:01:20]} 22. e5 {[%clk 0:01:10]}  Nxe5 {[%clk 0:00:58]} 23. Bxe5 {[%clk 0:01:09]}  dxe5 {[%clk 0:00:55]} 24. Qxg6 {[%clk 0:01:07]}  Bxc4 {[%clk 0:00:54]} 25. dxe6 {[%clk 0:00:52]}  Rxe6 {[%clk 0:00:49]} 26. Qe4 {[%clk 0:00:36]}  Bxf1 {[%clk 0:00:36]} 27. Qxa8+ {[%clk 0:00:36]}  Re8 {[%clk 0:00:33]} 28. Qd5+ {[%clk 0:00:36]}  Qxd5 {[%clk 0:00:34]} 29. Bxd5+ {[%clk 0:00:37]}  Kh7 {[%clk 0:00:35]} 30. Rxf1 {[%clk 0:00:37]}  e4 {[%clk 0:00:34]} 31. Rf2 {[%clk 0:00:30]}  e3 {[%clk 0:00:27]} 32. Re2 {[%clk 0:00:28]}  Rb8 {[%clk 0:00:10]} 33. Bc6 {[%clk 0:00:19]}  Bxb2 {[%clk 0:00:10]} 34. Bxa4 {[%clk 0:00:19]}  Bd4 {[%clk 0:00:06]} 35. Bc2+ {[%clk 0:00:17]}  Kg7 {[%clk 0:00:06]} 36. Nf4 {[%clk 0:00:18]}  Kf6 {[%clk 0:00:03]} 37. Nd5+ {[%clk 0:00:18]}  Ke5 {[%clk 0:00:04]} 38. Nxc7 {[%clk 0:00:18]}  c4 {[%clk 0:00:04]} 39. a4 {[%clk 0:00:12]}  c3 {[%clk 0:00:05]} 40. Nb5 {[%clk 0:00:13]}  Ra8 {[%clk 0:00:03]} 41. Nxd4 {[%clk 0:00:03]}  Kxd4 {[%clk 0:00:04]} 42. Kg2 {[%clk 0:00:04]}  Rb8 {[%clk 0:00:04]} 43. Kf3 {[%clk 0:00:04]}  Rf8+ {[%clk 0:00:05]} 44. Kg2 {[%clk 0:00:03]}  Ra8 {[%clk 0:00:05]} 45. h3 {[%clk 0:00:03]}  Ra7 {[%clk 0:00:05]} 46. g4 {[%clk 0:00:03]}  Ra8 {[%clk 0:00:06]} 47. Kh2 {[%clk 0:00:04]}  Rf8 {[%clk 0:00:05]} 48. Kg3 {[%clk 0:00:04]}  Ra8 {[%clk 0:00:05]} 49. Rg2 {[%clk 0:00:03]}  Re8 {[%clk 0:00:04]} 50. Kf3 {[%clk 0:00:03]}  Ra8 {[%clk 0:00:03]} 51. Ke2 {[%clk 0:00:02]}  Ra5 {[%clk 0:00:03]} 52. Rg3 {[%clk 0:00:02]}  Re5 {[%clk 0:00:02]} 53. Rf3 {[%clk 0:00:02]}  Re7 {[%clk 0:00:02]} 54. Rf4+ {[%clk 0:00:03]}  Kd5 {[%clk 0:00:02]} 55. Rf3 {[%clk 0:00:03]}  Kd4 {[%clk 0:00:02]} 56. h4 {[%clk 0:00:03]}  Rb7 {[%clk 0:00:03]} 57. Rf4+ {[%clk 0:00:03]}  Kd5 {[%clk 0:00:02]} 58. Kxe3 {[%clk 0:00:04]}  Rb2 {[%clk 0:00:03]} 59. Kd3 {[%clk 0:00:03]}  Ke5 {[%clk 0:00:03]} 60. Rf5+ {[%clk 0:00:03]}  Ke6 {[%clk 0:00:04]} 61. Rh5 {[%clk 0:00:04]}  Kf6 {[%clk 0:00:02]} 62. Rxh6+ {[%clk 0:00:05]}  Ke5 {[%clk 0:00:03]} 63. Rh5+ {[%clk 0:00:06]}  Kf4 {[%clk 0:00:04]} 64. g5 {[%clk 0:00:05]}  Kg4 {[%clk 0:00:04]} 65. Rh6 {[%clk 0:00:06]}  Rb7 {[%clk 0:00:04]} 66. a5 {[%clk 0:00:06]}  Ra7 {[%clk 0:00:03]} 67. a6 {[%clk 0:00:07]}  Kf4 {[%clk 0:00:04]} 68. Kxc3 {[%clk 0:00:07]}  Ke3 {[%clk 0:00:04]} 69. Ba4 {[%clk 0:00:08]}  Kf4 {[%clk 0:00:05]} 70. Bc6 {[%clk 0:00:08]}  Rxa6 {[%clk 0:00:04]} 71. Kd4 {[%clk 0:00:08]}  Kg4 {[%clk 0:00:04]} 72. Kd5 {[%clk 0:00:08]}  Ra5+ {[%clk 0:00:05]} 73. Kd6 {[%clk 0:00:08]}  Ra1 {[%clk 0:00:05]} 74. g6 {[%clk 0:00:09]}  Rd1+ {[%clk 0:00:06]} 75. Bd5 {[%clk 0:00:08]}  Kf5 {[%clk 0:00:07]} 76. g7 {[%clk 0:00:08]}  Ra1 {[%clk 0:00:05]} 77. g8=Q {[%clk 0:00:06]}  Ra6+ {[%clk 0:00:06]} 78. Kc5 {[%clk 0:00:06]}  Rxh6 {[%clk 0:00:05]} 79. Qg5# {[%clk 0:00:05]} 1-0


[Site "https://www.chess.com"]

[Event "Titled Tuesday Blitz April 25 Late 2023"]
[White "Harriott, Tyrell"]
[Black "Bustamante Orta, Jorge"]
[WhiteFideId "2086484"]
[BlackFideId "5121710"]
[WhiteElo "2107"]
[BlackElo "2165"]
[Result "1-0"]
[Round "07"]
[TimeControl "180+2"]
[Date "2023.04.25"]
[WhiteClock "0:00:15"]
[BlackClock "0:00:01"]

1. d4 {[%clk 0:03:00]}  Nf6 {[%clk 0:02:55]} 2. e3 {[%clk 0:03:01]}  e6 {[%clk 0:02:54]} 3. Bd3 {[%clk 0:03:02]}  c5 {[%clk 0:02:54]} 4. f4 {[%clk 0:03:02]}  Nc6 {[%clk 0:02:54]} 5. c3 {[%clk 0:03:02]}  b6 {[%clk 0:02:54]} 6. Nf3 {[%clk 0:03:02]}  Bb7 {[%clk 0:02:54]} 7. O-O {[%clk 0:03:02]}  d5 {[%clk 0:02:51]} 8. Nbd2 {[%clk 0:02:59]}  Bd6 {[%clk 0:02:50]} 9. Ne5 {[%clk 0:02:59]}  O-O {[%clk 0:02:49]} 10. Qf3 {[%clk 0:02:59]}  Ne7 {[%clk 0:02:49]} 11. g4 {[%clk 0:02:59]}  Rc8 {[%clk 0:02:31]} 12. Rf2 {[%clk 0:02:57]}  a6 {[%clk 0:01:59]} 13. h4 {[%clk 0:02:53]}  b5 {[%clk 0:01:58]} 14. g5 {[%clk 0:02:47]}  Ne4 {[%clk 0:01:59]} 15. Nxe4 {[%clk 0:02:46]}  dxe4 {[%clk 0:01:59]} 16. Bxe4 {[%clk 0:02:47]}  Bxe4 {[%clk 0:01:59]} 17. Qxe4 {[%clk 0:02:47]}  Nf5 {[%clk 0:01:59]} 18. Qf3 {[%clk 0:02:25]}  f6 {[%clk 0:01:53]} 19. gxf6 {[%clk 0:02:21]}  gxf6 {[%clk 0:01:52]} 20. Rg2+ {[%clk 0:01:57]}  Kh8 {[%clk 0:01:50]} 21. Ng6+ {[%clk 0:01:50]}  hxg6 {[%clk 0:01:49]} 22. Rxg6 {[%clk 0:01:49]}  Rc7 {[%clk 0:01:06]} 23. e4 {[%clk 0:01:49]}  Nxh4 {[%clk 0:01:05]} 24. Rh6+ {[%clk 0:01:43]}  Rh7 {[%clk 0:01:05]} 25. Qh5 {[%clk 0:01:43]}  Rg8+ {[%clk 0:01:03]} 26. Kf1 {[%clk 0:01:40]}  Qc7 {[%clk 0:00:28]} 27. Qxh4 {[%clk 0:01:30]}  cxd4 {[%clk 0:00:20]} 28. Qxf6+ {[%clk 0:00:53]}  Rg7 {[%clk 0:00:16]} 29. b3 {[%clk 0:00:31]}  Rxh6 {[%clk 0:00:06]} 30. Qxh6+ {[%clk 0:00:30]}  Kg8 {[%clk 0:00:07]} 31. e5 {[%clk 0:00:25]}  Bf8 {[%clk 0:00:05]} 32. Qxe6+ {[%clk 0:00:25]}  Qf7 {[%clk 0:00:05]} 33. Qxf7+ {[%clk 0:00:24]}  Kxf7 {[%clk 0:00:05]} 34. cxd4 {[%clk 0:00:25]}  Ke6 {[%clk 0:00:06]} 35. Be3 {[%clk 0:00:22]}  Kd5 {[%clk 0:00:06]} 36. Ke2 {[%clk 0:00:23]}  Ke4 {[%clk 0:00:06]} 37. Rf1 {[%clk 0:00:21]}  Rc7 {[%clk 0:00:02]} 38. f5 {[%clk 0:00:18]}  Rc2+ {[%clk 0:00:02]} 39. Kd1 {[%clk 0:00:16]}  Rxa2 {[%clk 0:00:01]} 40. Bc1 {[%clk 0:00:15]} 1-0


[Site "https://www.chess.com"]